Cogmind - Beta 9.6 @@@ ROGUE MODE // 2020.06.09 @ 21:19:23 Player: Vectis Result: Destroyed by G-47 Trooper with Particle Gun Performance ------------- Evolutions (2) 1000 Regions Visited (8) 1600 Robots Destroyed (150) 750 Value Destroyed (4517) 4517 Prototype IDs (5) 100 Alien Tech Used (0) 0 Bonus (999) 999 TOTAL SCORE: 8966 Bonus ------- High Alert Combat Kills 590 Follower Combat Kills 209 Entered Garrisons 200 Cogmind --------- Core Integrity 0/550 Matter 300/300 Energy 160/160 System Corruption 0% Temperature Cool (6) Movement Hovering (45) Location -8/Garrison Parts ------- > --- POWER (1) -------- Light Nuclear Core > --- PROPULSION (3) --- Airjet Aerolev Unit Aerolev Unit > --- UTILITY (5) ------ Large Storage Unit Hacking Suite Hacking Suite Hacking Suite > --- WEAPON (2) ------- Katana > --- INVENTORY (10) --- Hacking Suite Hacking Suite Relay Coupler [NC] (17) Relay Coupler [NC] (19) Relay Coupler [Swarmer] (38) Relay Coupler [Swarmer] (37) Relay Coupler [Grunt] (32) Relay Coupler [Brawler] (31) Relay Coupler [Sentry] (14) Plasma Cutter Peak State ------------ > --- POWER ------------ Light Nuclear Core > --- PROPULSION ------- Airjet Aerolev Unit Aerolev Unit > --- UTILITY ---------- Large Storage Unit Large Storage Unit Hacking Suite Hacking Suite Hacking Suite > --- WEAPON ----------- Katana > --- INVENTORY -------- Advanced Sensor Array Hacking Suite Hacking Suite Relay Coupler [NC] Relay Coupler [NC] Relay Coupler [Swarmer] Relay Coupler [Swarmer] Relay Coupler [Grunt] Relay Coupler [Brawler] Relay Coupler [Sentry] Plasma Cutter [Rating: 30] Favorites ----------- Power Cooled Ion Engine Engine Cooled Ion Engine Power Core Light Nuclear Core Propulsion Light Treads Treads Light Treads Hover Unit Aerolev Unit Utility Large Storage Unit Storage Large Storage Unit Hackware Hacking Suite Protection Medium Armor Plating Weapon Improved Medium Laser Energy Gun Improved Medium Laser Energy Cannon Beam Cannon Ballistic Gun Heavy Assault Rifle Launcher Rocket Launcher Special Weapon Plasma Cutter Slashing Weapon Mining Claw Build | -11 -10 -10 -9 -9 -9 -8 -8 -8 ------- Run | Scr Mat Min Mat Min Exi Min Mat Gar Slots Evolved 4 | . . . 2 . . . 2 . Power . | . . . . . . . . . Propulsion 1 | . . . 1 . . . . . Utility 3 | . . . 1 . . . 2 . Weapon . | . . . . . . . . . Parts Attached 164 | 7 27 3 43 . . . 64 20 Power 13 | 1 2 . 5 . . . 3 2 Engine 8 | 1 2 . 4 . . . 1 . Core 5 | . . . 1 . . . 2 2 Reactor . | . . . . . . . . . Propulsion 43 | 2 5 . 13 . . . 17 6 Treads 39 | 2 5 . 13 . . . 16 3 Leg . | . . . . . . . . . Wheel . | . . . . . . . . . Hover 4 | . . . . . . . 1 3 Flight . | . . . . . . . . . Utility 19 | 2 3 . 1 . . . 10 3 Device . | . . . . . . . . . Storage 9 | 2 3 . 1 . . . 3 . Processor . | . . . . . . . . . Hackware 3 | . . . . . . . . 3 Protection 7 | . . . . . . . 7 . Artifact . | . . . . . . . . . Weapon 89 | 2 17 3 24 . . . 34 9 Energy Gun 26 | 2 5 . 11 . . . 5 3 Energy Cannon 6 | . 2 1 3 . . . . . Ballistic Gun 24 | . 4 1 2 . . . 15 2 Ballistic Cannon . | . . . . . . . . . Launcher 14 | . 4 1 . . . . 6 3 Special Weapon 10 | . . . 7 . . . 3 . Impact Weapon . | . . . . . . . . . Slashing Weapon 9 | . 2 . 1 . . . 5 1 Piercing Weapon . | . . . . . . . . . Special Melee Weapon . | . . . . . . . . . Unidentified Prototypes 5 | . . . 2 . . . 3 . Parts Lost 22 | . 2 . . . . . 11 9 Power 5 | . 1 . . . . . 2 2 Propulsion 7 | . . . . . . . 5 2 Utility 3 | . . . . . . . 2 1 Weapon 7 | . 1 . . . . . 2 4 Highest Loss Streak 7 | . 1 . . . . . 4 7 Average Slot Usage (%) 98 | . 98 100 99 100 100 100 96 97 Engine 8 | . 13 14 9 11 11 11 4 . Core 1 | . . . 1 . . . 2 8 Treads 29 | . 27 28 33 33 33 33 26 24 Storage 33 | . 28 28 32 33 33 33 35 33 Protection 3 | . . . . . . . 8 7 Energy Gun 10 | . 15 . 9 22 22 22 5 7 Energy Cannon 1 | . 1 13 4 . . . . . Ballistic Gun 7 | . 9 14 4 . . . 11 7 Special Weapon 1 | . . . 2 . . . 1 . Naked Turns . | . . . . . . . . . Heaviest Build 86 | 16 42 40 62 62 62 62 85 86 Greatest Support 63 | 40 40 40 60 60 60 60 63 63 Greatest Overweight (x) 2 | . 1 . 1 1 1 1 2 1 Average Overweight (x) . | . . . . 1 1 1 1 . Largest Inventory Capacity 28 | 8 16 16 22 22 22 22 28 28 Average Capacity 22 | 5 15 16 21 22 22 22 27 26 Most Carried 28 | 4 16 16 22 22 22 22 28 28 Average Carried 21 | 3 14 15 21 22 21 22 26 25 Final Capacity 28 | 8 16 16 22 22 22 22 28 10 Final Carried 28 | 4 16 16 22 22 22 22 28 10 Class Distribution -------------------- 67% | Hauler-Mutant 18% | Mutant 12% | Scavenger-Mutant Dominant Class ---------------- Mutant | -10/Materials Mutant | -10/Mines Hauler-Mutant | -9/Materials Hauler-Mutant | -9/Mines Hauler-Mutant | -9/Exiles Hauler-Mutant | -8/Mines Hauler-Mutant | -8/Materials Hauler-Mutant | -8/Garrison Resources | -11 -10 -10 -9 -9 -9 -8 -8 -8 ----------- Run | Scr Mat Min Mat Min Exi Min Mat Gar Matter Collected 3101 | 270 317 17 708 . 29 . 1429 331 Remotely . | . . . . . . . . . Salvage Created 5313 | 93 460 21 1179 . . 42 2722 796 Parts 336 | 2 40 6 93 . . 4 149 42 Haulers Intercepted 5 | . 2 . 1 . . . 2 . Recyclers Shooed 2 | . 1 . 1 . . . . . Parts Field Recycled . | . . . . . . . . . Retrieved Matter . | . . . . . . . . . Parts Self-Destructed . | . . . . . . . . . Prevented . | . . . . . . . . . Kills | -11 -10 -10 -9 -9 -9 -8 -8 -8 ------- Run | Scr Mat Min Mat Min Exi Min Mat Gar Combat Hostiles Destroyed 123 | . 16 3 28 . . 3 57 16 Guns 86 | . 6 1 22 . . 3 45 9 Cannons 6 | . . . 6 . . . . . AOE 31 | . 10 2 . . . . 12 7 Classes Destroyed 14 | 1 6 . 3 . . . 2 2 Worker 3 | . . . 1 . . . 2 . Builder 2 | . 1 . . . . . 1 . Tunneler 1 | . . . . . . . 1 . Hauler 5 | . 2 . 1 . . . 2 . Recycler 3 | 1 1 . 1 . . . . . Operator 7 | . 1 . 4 . . . 2 . Watcher 6 | . 1 . 1 . . . 4 . Swarmer 41 | . 12 3 10 . . 3 13 . Grunt 57 | . 4 . 13 . . . 31 9 Brawler 2 | . . . 1 . . . 1 . Duelist 5 | . . . . . . . 5 . Protector 1 | . . . . . . . . 1 Sentry 16 | . . . 4 . . . 7 5 Demolisher 1 | . . . . . . . . 1 Best Kill Streak 10 | 1 6 3 4 . . 3 10 7 Combat Bots Only 8 | . 6 3 4 . . 3 8 7 Max Kills in Single Turn 4 | 1 3 2 2 . . 1 4 2 Gunslinging 1 | . 1 . 1 . . . 1 . Exploded 3 | . 3 2 . . . . 3 2 Melee . | . . . . . . . . . Uniques/NPCs Destroyed . | . . . . . . . . . Combat | -11 -10 -10 -9 -9 -9 -8 -8 -8 -------- Run | Scr Mat Min Mat Min Exi Min Mat Gar Damage Taken 6627 | . 486 116 966 . . 165 3144 1750 Core 821 | . 81 22 158 . . . 344 216 Absorbed by Shields 13 | . . . . . . . . 13 Core Remaining (%) 72 | 100 . 58 . . . 60 . . Volleys Fired 376 | 5 43 4 94 . . 6 177 47 Largest 2 | 2 2 2 2 . . 2 2 2 Hottest 112 | 80 100 80 112 . . 112 112 92 Shots Fired 682 | 10 84 8 151 . . 12 335 82 Gun 592 | 10 75 4 96 . . 12 319 76 Cannon 39 | . 1 3 35 . . . . . Launcher 25 | . 8 1 . . . . 10 6 Special 26 | . . . 20 . . . 6 . Kinetic 356 | . 20 4 35 . . . 259 38 Thermal 289 | 5 55 3 110 . . 12 66 38 Explosive 16 | . 8 1 . . . . 5 2 Electromagnetic 21 | 5 1 . 6 . . . 5 4 Robot Hit Streak 24 | 4 9 4 10 . . 5 24 11 Robot Miss Streak 6 | 1 6 3 3 . . 1 3 2 Penetration Max . | . . . . . . . . . Secondary Targets 18 | . 2 . 4 . . 1 10 1 Max Gunslinging Chain 1 | . 1 . 1 . . 1 1 1 Shots Hit Robots 489 | 8 46 5 106 . . 9 254 61 Core Hits 254 | 2 33 3 49 . . 3 132 32 Critical Hits 8 | . . . 2 . . . 6 . Critical Kills 3 | . . . 1 . . . 2 . Critical Parts Destroyed 4 | . . . 1 . . . 3 . Melee Attacks 18 | . 1 . 7 . . . 10 . Impact . | . . . . . . . . . Slashing 18 | . 1 . 7 . . . 10 . Piercing . | . . . . . . . . . Sneak Attacks 1 | . 1 . . . . . . . Combat Hostiles . | . . . . . . . . . Follow-up Attacks . | . . . . . . . . . Damage Inflicted 9937 | 99 1093 172 1735 . . 163 5209 1466 Guns 6642 | 99 474 26 1083 . . 159 3835 966 Cannons 576 | . 17 56 503 . . . . . Explosions 2426 | . 509 90 . . . . 1327 500 Melee 93 | . 93 . . . . . . . Ramming 12 | . . . 5 . . 4 3 . Kinetic 3888 | . 87 26 342 . . . 2981 452 Thermal 3489 | 44 380 56 1324 . . 159 1012 514 Explosive 1255 | . 509 90 . . . . 570 86 Electromagnetic 1200 | 55 24 . 64 . . . 643 414 Impact . | . . . . . . . . . Slashing 93 | . 93 . . . . . . . Piercing . | . . . . . . . . . Highest Corruption 3 | . . . 3 3 3 3 . . Average Corruption 2 | . . . 2 3 3 3 . . Corruption Purged . | . . . . . . . . . Effects 61 | . . . 40 9 10 2 . . Message Errors 15 | . . . 8 3 4 . . . Matter Fused 13 | . . . 9 3 1 . . . Heat Flow Errors 8 | . . . 5 1 2 . . . Energy Discharges 8 | . . . 5 . 2 1 . . Data Loss (minor) 10 | . . . 6 2 1 1 . . Targeting Errors 6 | . . . 6 . . . . . Weapon Failures 1 | . . . 1 . . . . . Overload Shots . | . . . . . . . . . Overflow Damage 119 | . 9 . . . . . 94 16 Projectiles 9 | . 9 . . . . . . . Explosions 110 | . . . . . . . 94 16 Melee . | . . . . . . . . . Knockbacks . | . . . . . . . . . Impact . | . . . . . . . . . Kinetic . | . . . . . . . . . Secondary . | . . . . . . . . . Self-Inflicted Damage 122 | . 71 4 . . . . 1 46 Shots 6 | . 3 1 . . . . 1 1 Rammed 3 | . . . 1 . . 1 1 . Targets Rammed 3 | . . . 1 . . 1 1 . Kicked . | . . . . . . . . . Crushed . | . . . . . . . . . Highest Temperature 309 | 90 274 36 305 218 275 216 309 288 Average Temperature 79 | 46 66 15 85 114 124 112 45 125 Received Heat Transfer 2163 | . 78 . 249 . . . 1296 540 Effects 6 | . . . 3 . . 1 . 2 Energy Bleed 1 | . . . 1 . . . . . Interference 5 | . . . 2 . . 1 . 2 Siege Activations . | . . . . . . . . . Robots Corrupted 1 | . . . . . . . 1 . Combat Hostiles . | . . . . . . . . . Parts Fried 7 | . . . 1 . . . 5 1 Impact Corruptions . | . . . . . . . . . Robots Melted . | . . . . . . . . . Combat Hostiles . | . . . . . . . . . Parts Melted 17 | . . . 5 . . 3 4 5 Heat Transferred 7741 | 100 1110 111 2923 . . 333 2148 1016 Parts Sabotaged . | . . . . . . . . . Parts Stolen . | . . . . . . . . . Parts Stripped . | . . . . . . . . . Power Chain Reactions 4 | . . . . . . . 2 2 Missiles Intercepted . | . . . . . . . . . Alert | -11 -10 -10 -9 -9 -9 -8 -8 -8 ------- Run | Scr Mat Min Mat Min Exi Min Mat Gar Peak Influence 864 | 5 240 75 607 156 . 93 839 864 Average Influence 300 | 2 86 61 330 156 . 62 360 670 Maximum Alert Level 3 | . 1 . 2 . . . 3 3 Low Security (%) 43 | 100 96 100 30 100 . 100 22 . Level 1 26 | . 3 . 31 . . . 44 . Level 2 22 | . . . 38 . . . 21 47 Level 3 7 | . . . . . . . 10 52 Level 4 . | . . . . . . . . . Level 5 . | . . . . . . . . . High Security . | . . . . . . . . . Max Security . | . . . . . . . . . Squads Dispatched 20 | . 1 . 4 . . 1 14 . Investigation 2 | . . . . . . 1 1 . Extermination . | . . . . . . . . . Reinforcement 9 | . 1 . 4 . . . 4 . Assault . | . . . . . . . . . Garrison 9 | . . . . . . . 9 . Intercept . | . . . . . . . . . Construction Impeded 2 | . . . . . . . 2 . Haulers Reinforced . | . . . . . . . . . Stealth | -11 -10 -10 -9 -9 -9 -8 -8 -8 --------- Run | Scr Mat Min Mat Min Exi Min Mat Gar Distress Signals 10 | . 2 . 2 . . . 6 . Communications Jammed . | . . . . . . . . . Distress Signals . | . . . . . . . . . Times Spotted 221 | . 34 3 70 . . 4 83 27 Peak Tracking Total 8 | . 8 3 5 . . 3 8 7 Tactical Retreats 11 | . 2 . 1 . . . 5 3 Traps | -11 -10 -10 -9 -9 -9 -8 -8 -8 ------- Run | Scr Mat Min Mat Min Exi Min Mat Gar Traps Triggered 7 | . 2 . 2 . . . . 3 Indirectly . | . . . . . . . . . Trap Hack Attempts . | . . . . . . . . . Triggered . | . . . . . . . . . Disarmed 1 | . 1 . . . . . . . Reprogrammed . | . . . . . . . . . Reused 1 | . . . . . . . . 1 Traps Extracted . | . . . . . . . . . Installed 1 | . . . . . . . . 1 Triggered 1 | . . . . . . . . 1 Exploded 1 | . . . . . . . . 1 Machines | -11 -10 -10 -9 -9 -9 -8 -8 -8 ---------- Run | Scr Mat Min Mat Min Exi Min Mat Gar Machines Disabled 4 | . . . 2 . . . 1 1 Max in Single Turn 1 | . . . 1 . . . 1 1 Garrison Relay 1 | . . . . . . . . 1 Machines Sabotaged . | . . . . . . . . . Garrisons Compromised . | . . . . . . . . . Overloaded Fab Kills . | . . . . . . . . . Fab Network Shutdowns . | . . . . . . . . . Hacking | -11 -10 -10 -9 -9 -9 -8 -8 -8 --------- Run | Scr Mat Min Mat Min Exi Min Mat Gar Machines Accessed 26 | . 7 . 8 . 1 1 9 . Terminals 20 | . 6 . 6 . . 1 7 . Fabricators . | . . . . . . . . . Repair Stations 3 | . 1 . 1 . . . 1 . Recycling Units . | . . . . . . . . . Scanalyzers 1 | . . . 1 . . . . . Garrison Access 1 | . . . . . . . 1 . Total Hacks 78 | . 26 . 22 . 1 5 24 . Successful 39 | . 14 . 11 . 1 1 12 . Failed 39 | . 12 . 11 . . 4 12 . Catastrophic 8 | . 2 . 3 . . 2 1 . Database Lockouts . | . . . . . . . . . Manual 53 | . 19 . 12 . . 5 17 . Terminals 62 | . 22 . 16 . . 5 19 . Fabricators . | . . . . . . . . . Repair Stations 8 | . 4 . 2 . . . 2 . Recycling Units . | . . . . . . . . . Scanalyzers 4 | . . . 4 . . . . . Garrison Access 3 | . . . . . . . 3 . Terminal Hacks 12 | . 4 . 4 . 1 1 2 . Record 1 | . . . . . 1 . . . Robot Schematic 1 | . . . . . . 1 . . Robot Analysis 2 | . 2 . . . . . . . Unreport Threat 3 | . . . 1 . . . 2 . Locate Traps 3 | . . . 3 . . . . . Disarm Traps 1 | . 1 . . . . . . . Registered Components 1 | . 1 . . . . . . . Fabricator Hacks . | . . . . . . . . . Repair Station Hacks 8 | . 4 . 2 . . . 2 . Scan Component 4 | . 2 . 1 . . . 1 . Repair 4 | . 2 . 1 . . . 1 . Recycling Unit Hacks . | . . . . . . . . . Scanalyzer 4 | . . . 4 . . . . . Insert Component 2 | . . . 2 . . . . . Analyze 2 | . . . 2 . . . . . Garrison Access Hacks 1 | . . . . . . . 1 . Unlock Access 1 | . . . . . . . 1 . Unauthorized Hacks 14 | . 6 . 1 . . . 7 . Terminals 13 | . 6 . 1 . . . 6 . Track 1 | . 1 . . . . . . . Botnet 9 | . 4 . 1 . . . 4 . Disrupt 1 | . . . . . . . 1 . Operators 2 | . 1 . . . . . 1 . Fabricators . | . . . . . . . . . Repair Stations . | . . . . . . . . . Recycling Units . | . . . . . . . . . Scanalyzers . | . . . . . . . . . Garrison Access 1 | . . . . . . . 1 . Eject 1 | . . . . . . . 1 . Data Cores Recovered . | . . . . . . . . . Used . | . . . . . . . . . Hacking Detections 22 | . 7 . 6 . . 1 8 . Full Trace Events 1 | . . . . . . 1 . . Feedback Events . | . . . . . . . . . Feedback Blocked . | . . . . . . . . . Robot Schematics Acquired 1 | . . . . . . 1 . . Robots Built . | . . . . . . . . . Matter . | . . . . . . . . . Time . | . . . . . . . . . Total Robot Build Rating . | . . . . . . . . . Part Schematics Acquired 2 | . . . 2 . . . . . Parts Built . | . . . . . . . . . Matter . | . . . . . . . . . Time . | . . . . . . . . . Total Part Build Rating . | . . . . . . . . . Parts Repaired 4 | . 2 . 1 . . . 1 . Time 91 | . 52 . 13 . . . 26 . Parts Recycled . | . . . . . . . . . Recycled Matter . | . . . . . . . . . Retrieved Matter . | . . . . . . . . . Retrieved Components . | . . . . . . . . . Parts Scanalyzed 2 | . . . 2 . . . . . Part Schematics Acquired 2 | . . . 2 . . . . . Parts Damaged . | . . . . . . . . . Bothacking | -11 -10 -10 -9 -9 -9 -8 -8 -8 ------------ Run | Scr Mat Min Mat Min Exi Min Mat Gar Used RIF Installer . | . . . . . . . . . Robots Hacked . | . . . . . . . . . Non-combat . | . . . . . . . . . Combat . | . . . . . . . . . Robot Hacks Applied . | . . . . . . . . . Relay Couplers Released 7 | . . . . . . . 3 4 Ejected 3 | . . . . . . . 3 . Machine Destruction 4 | . . . . . . . . 4 Robots Rewired . | . . . . . . . . . Allies Hacked . | . . . . . . . . . Hacks Repelled . | . . . . . . . . . Allies | -11 -10 -10 -9 -9 -9 -8 -8 -8 -------- Run | Scr Mat Min Mat Min Exi Min Mat Gar Total Allies 1 | . . 1 . . . . . . Largest Group 1 | . . 1 1 . . . . . Highest-Rated Group 31 | . . 31 31 . . . . . Highest-Rated Ally 31 | . . 31 31 . . . . . Total Orders . | . . . . . . . . . Ally Attacks 34 | . . . 34 . . . . . Total Damage 510 | . . . 510 . . . . . Kills 11 | . . . 11 . . . . . Allies Corrupted . | . . . . . . . . . Allies Melted . | . . . . . . . . . Intel | -11 -10 -10 -9 -9 -9 -8 -8 -8 ------- Run | Scr Mat Min Mat Min Exi Min Mat Gar Robot Analysis Total 2 | . 2 . . . . . . . Derelict Logs Recovered 2 | . . 1 . 1 . . . . Drone Launches . | . . . . . . . . . Drone Recoveries . | . . . . . . . . . Exploration | -11 -10 -10 -9 -9 -9 -8 -8 -8 ------------- Run | Scr Mat Min Mat Min Exi Min Mat Gar Turns Passed 8419 | 130 1308 150 2481 348 724 96 2662 520 Spaces Moved 3805 | 68 627 78 1189 194 402 36 988 223 Core 7 | 7 . . . . . . . . Treads 3752 | 61 627 78 1189 194 402 36 988 177 Legs . | . . . . . . . . . Wheels . | . . . . . . . . . Hover 46 | . . . . . . . . 46 Flight . | . . . . . . . . . Fastest Speed 45 | 50 160 160 160 180 180 180 180 45 Average Speed 171 | 148 168 160 166 180 180 180 180 152 Slowest Speed 200 | 160 180 160 180 180 180 180 200 183 Overloaded Moves . | . . . . . . . . . Propulsion Burnouts . | . . . . . . . . . Robots Hopped . | . . . . . . . . . Cave-ins Triggered . | . . . . . . . . . Exploration Rate (%) 48 | 6 96 20 77 51 79 9 64 35 Regions Visited 8 Branch Regions 4 Pre-discovered Areas . | . . . . . . . . . Known Exits Taken 1 | . . . . . . . 1 . Unknown Exits Taken 7 | 1 1 1 1 1 1 1 . . Scrap Searched . | . . . . . . . . . Spaces Dug 8 | . . . 1 . . . 7 . Terrain Destroyed 129 | . 53 6 1 . . . 58 11 Melee 8 | . . . 1 . . . 7 . Projectile . | . . . . . . . . . AOE 121 | . 53 6 . . . . 51 11 Actions | -11 -10 -10 -9 -9 -9 -8 -8 -8 --------- Run | Scr Mat Min Mat Min Exi Min Mat Gar Total 4959 | 84 789 96 1513 193 403 55 1499 327 Wait 437 | . 68 3 135 . . 13 215 3 Move 3798 | 67 626 77 1188 193 401 36 987 223 Hop . | . . . . . . . . . Pick Up 69 | 5 16 4 17 . 1 . 21 5 Fast Attach 31 | 6 6 1 8 . . . 9 1 Attach 33 | 1 2 . 3 . . . 13 14 Detach . | . . . . . . . . . Swap 100 | . 19 2 32 . . . 42 5 Drop 84 | . 8 5 28 . 1 . 24 18 Fire 376 | 5 43 4 94 . . 6 177 47 Melee 18 | . 1 . 7 . . . 10 . Ram . | . . . . . . . . . Kick . | . . . . . . . . . Crush 2 | . . . 1 . . . 1 . Escape Stasis 10 | . . . . . . . . 10 Rewire . | . . . . . . . . . Trap 1 | . . . . . . . . 1 Miscellaneous . | . . . . . . . . . Route ------- -11/Scrapyard -10/Materials (discovered 4 exits: *Mat x3 / [*Min]) -10/Mines -9/Materials (discovered 3 exits: *Mat x2 / [*Min]) -9/Mines (discovered 2 exits: *Mat / *Exi) -9/Exiles (discovered 2 exits: *Min x2) -8/Mines -8/Materials (discovered 4 exits: [*Fac x3] / Gar) -8/Garrison History --------- Turn | Location | Event 30 | -11/Scrapyard | Discovered new exit (range 16) 131 | -11/Scrapyard | Entered Materials 341 | -10/Materials | Build established: Mutant 487 | -10/Materials | Discovered new exit (range 16) 703 | -10/Materials | Discovered new exit (range 7) 935 | -10/Materials | Discovered new exit (range 14) 1151 | -10/Materials | Repaired Lgt. Treads 1178 | -10/Materials | Repaired Lgt. Treads 1212 | -10/Materials | Discovered new exit (range 12) 1439 | -10/Materials | Entered Mines 1439 | -10/Mines | Found a hidden stash of uninstalled traps 1496 | -10/Mines | Escorted by a lone wolf Derelict 1569 | -10/Mines | Discovered new exit (range 14) 1573 | -10/Mines | Learned Materials emergency access door positions 1589 | -10/Mines | Entered Materials 1589 | -9/Materials | Accompanied by 1 ally 1589 | -9/Materials | Evolved 2 slots: Propulsion x1, Utility x1 1879 | -9/Materials | Build established: Hauler-Mutant 1892 | -9/Materials | Discovered new exit (range 15) 2160 | -9/Materials | Discovered new exit (range 14) 2207 | -9/Materials | Build established: Scavenger-Mutant 2441 | -9/Materials | Repaired Beam Cannon 2974 | -9/Materials | Build established: Hauler-Mutant 3373 | -9/Materials | Discovered new exit (range 16) 4070 | -9/Materials | Entered Mines 4097 | -9/Mines | Discovered new exit (range 11) 4195 | -9/Mines | Learned Materials security intel 4411 | -9/Mines | Deemed a non-threat by the Exiles lab entrance 4411 | -9/Mines | Discovered new exit (range 5) 4418 | -9/Mines | Entered Exiles 4418 | -9/Exiles | Found Exiles lab abandoned 4919 | -9/Exiles | Discovered new exit (range 11) 5117 | -9/Exiles | Discovered new exit (range 14) 5142 | -9/Exiles | Entered Mines 5223 | -8/Mines | Discovered new exit (range 6) 5238 | -8/Mines | Entered Materials 5238 | -8/Materials | Evolved 2 slots: Utility x2 5707 | -8/Materials | Repaired Lgt. Treads 5715 | -8/Materials | Discovered new exit (range 5) 5923 | -8/Materials | Destroyed 8 combat bots 6113 | -8/Materials | Garrison activated, responded to threat 6186 | -8/Materials | Build established: Scavenger-Mutant 6240 | -8/Materials | Lost 4 parts (1p2n1u) 6491 | -8/Materials | Build established: Hauler-Mutant 6636 | -8/Materials | Core integrity fell below 50% 6876 | -8/Materials | Garrison activated, responded to threat 7185 | -8/Materials | Garrison activated, responded to threat 7203 | -8/Materials | Discovered new exit (range 10) 7439 | -8/Materials | Destroyed 8 combat bots 7474 | -8/Materials | Discovered new exit (range 3) 7889 | -8/Materials | Identified exit to Garrison 7900 | -8/Materials | Entered Garrison 7952 | -8/Garrison | Triggered checkpoint 8020 | -8/Garrison | Garrison Relay disabled 8320 | -8/Garrison | Triggered checkpoint 8324 | -8/Garrison | Triggered checkpoint 8335 | -8/Garrison | Core integrity fell below 20% 8367 | -8/Garrison | Destroyed 7 combat bots 8402 | -8/Garrison | Lost 7 parts (1p2n1u3w) 8418 | -8/Garrison | Triggered checkpoint 8420 | -8/Garrison | Destroyed by G-47 Trooper with Particle Gun Last Messages --------------- 08391_ Acquired 30 matter. 08393_ Acquired 44 matter. 08396_ The unstable cave ceiling collapses. 08396_ Acquired 64 matter. 08397_ Acquired 21 matter. 08409_ Triggered Stasis Trap. 08409_ A bubble of rippling energy engulfs the area. 08409_ Field strength at 92. 08410_ Field strength at 84. 08411_ Field strength at 76. 08412_ Field strength at 68. 08413_ Field strength at 60. 08414_ Field strength at 52. 08415_ Field strength at 44. 08416_ Field strength at 36. 08417_ Field strength at 28. 08418_ Beams of light sweep through the air. An alarm sounds. 08418_ Field strength at 16. 08419_ Field strength at 3. 08420_ Stasis field depleted. Map ----- +----------------------------------------------------+ | ???????????????????????????????????????????????? | | ???????????????????????????????????????????????? | | ???????????????????????????????????????????????? | | ???????????????????????????????????????????????? | | ???????????????????????????????????????????????? | | ?????????????????????????????????????????####### | | ????????????????????????????????????????? | | ????????????????????????????????????????? | | ?????????????????????????????????????????? | | ??????????????????????????????????????????# ## | | ????????????????????????????????????????### ## | | ????????????????????????????????????????# | | ????????????????????????????????????????# | | ????????????????????????????????????????# | | ????????????????????????????????????????? | | ??????????????????????????????????????????# # | | ????????????????????????????????########### # | | ????????????????????????????????# %=% | | ????????????????????????????????# * != | | ????????????????????????????????# ######## = | | ????????????????????????????????# #??????## ## | | ????????????????????????????????# #???????# ## | | ??????????????????????########### #???????# ## | | ??????????????????????# #???????# #? | | ????????????????????### ######### #???????# #? | | ????????????????????#g @#???????# #???????# #? | | ????????????????????#g #???????# #???????# #? | | ????????????????????#g #???????# ??????? #? | | ????????????????????# #???????# ?????? #? | | ????????????????????### #???????# ###?????####? | | ??????????????????????# #???????# #???????????? | | ??????????????????????# #???????# #???????????? | | ??????????????????????# ???????# #???????????? | | ??????????????????????###???????# #???????????? | | ????????????????????????????????# #???????????? | | ????????????????????????????????? #???????????? | | ????????????????????????????????? ????????????? | | ????????????????????????????????? ????????????? | | ????????????????????????????????? ????????????? | | ???????????????????????????????????????????????? | | ???????????????????????????????????????????????? | | ???????????????????????????????????????????????? | | ???????????????????????????????????????????????? | | ???????????????????????????????????????????????? | | ???????????????????????????????????????????????? | | ???????????????????????????????????????????????? | | ???????????????????????????????????????????????? | | ???????????????????????????????????????????????? | | ???????????????????????????????????????????????? | | ???????????????????????????????????????????????? | +----------------------------------------------------+ Best States ------------- Heat Dissipation 31 Energy Generation 14 Energy Capacity 280 Matter Stores 300 Matter Capacity 300 Sight Range 16 Terrain Scan Density 10 Armor Coverage 225 Evasion (%) 56 Recoil Reduction 3 Offensive Hacking 30 Item Schematics ----------------- Lrg. Storage Unit | -9/Materials | Scanalyzed Plasma Cutter | -9/Materials | Scanalyzed Robot Schematics ------------------ M-28 Smith | -8/Mines | Hacked Fabricated ------------ Nothing Alien Tech Used ----------------- None Achievements -------------- None Challenges ------------ None Game ------ Seed GhostArmageddonWings Manual? 0 Play Time 01:00:42 Cumulative 87.8 hours Start 2020.06.09 @ 19:36:49 End 2020.06.09 @ 21:19:23 Sessions 1 Manual Loads 0 Difficulty Rogue Special Mode None Game No. 45 Rogue 45 Adventurer 0 Explorer 0 Win Type - Total 5 Types 4/0/0/1/0/0/0 Lore% 64 Gallery% 59 Achievement% 51 Wizard Run 0 Options --------- ASCII 1 Keyboard 0 Movement Numpad Keybinds 0 Fullscreen 1 Font 18/SmallcapsGlow Map View 76x50 Tactical HUD 1 Map Filters NONE Filters NONE Steam 1 RUN: 935876a9-3a94-4939-b72f-61f48a8b2b03